fUSD/lending_fUSD_20240408
["ID","MTS","AMOUNT","RATE_DAILY","PERIOD"]
[321915732,1712617865234,-500.0,0.00024931,2]
[321915733,1712617865243,-537.04776733,0.00024931,2]
[321915734,1712617865253,-1942.34,0.00024931,2]
[321915735,1712617865262,-500.0,0.00024931,2]
[321915736,1712617865272,-500.0,0.00024931,2]
[321915737,1712617865282,-1089.2,0.00024931,2]
[321915738,1712617865291,-500.0,0.00024931,2]
[321915739,1712617865301,-2311.62,0.00024931,2]
[321915740,1712617865310,-1243.8,0.00024931,2]
[321915741,1712617865319,-500.0,0.00024931,2]
[321915742,1712617865329,-1640.47,0.00024931,2]
[321915743,1712617865338,-500.0,0.00024931,2]
[321915744,1712617865348,-500.0,0.00024931,2]
[321915745,1712617865357,-500.0,0.00024931,2]
[321915746,1712617865367,-500.0,0.00024931,2]
[321915747,1712617865376,-639.7,0.00024931,2]
[321915748,1712617865386,-884.01,0.00024931,2]
[321915749,1712617865395,-500.0,0.00024931,2]
[321915750,1712617865404,-500.0,0.00024931,2]
[321915751,1712617865414,-500.0,0.00024931,2]
[321915752,1712617865424,-896.62,0.00024931,2]
[321915753,1712617865434,-500.0,0.00024931,2]
[321915754,1712617865444,-718.84,0.00024931,2]
[321915755,1712617865454,-500.0,0.00024931,2]
[321915756,1712617865464,-871.91,0.00024931,2]
[321915757,1712617865474,-500.0,0.00024931,2]
[321915758,1712617865484,-500.0,0.00024931,2]
[321915759,1712617865494,-1977.87,0.00024931,2]
[321915760,1712617865503,-500.0,0.00024931,2]
[321915761,1712617865513,-151.0,0.00024931,7]
[321915762,1712617865522,-151.0,0.00024931,7]
[321915763,1712617865532,-151.0,0.00024931,7]
[321915764,1712617865542,-931.49,0.00024931,2]
[321915765,1712617865551,-500.0,0.00024931,2]
[321915766,1712617865561,-1748.15,0.00024931,2]
[321915767,1712617865571,-2050.44,0.00024931,2]
[321915768,1712617865581,-500.0,0.00024931,2]
[321915769,1712617865590,-2017.6,0.00024931,2]
[321915770,1712617865600,-855.12,0.00024931,2]
[321915771,1712617865610,-500.0,0.00024931,2]
[321915772,1712617865620,-151.0,0.00024931,7]
[321915773,1712617865631,-151.0,0.00024931,7]
[321915774,1712617865640,-151.0,0.00024931,7]
[321915775,1712617865650,-500.0,0.00024931,2]
[321915776,1712617865660,-1129.47,0.00024931,2]
[321915777,1712617865670,-361.63979185,0.00024931,2]
[321915778,1712617865680,-581.02553222,0.00024931,2]
[321915779,1712617865690,-500.0,0.00024931,2]
[321915780,1712617865699,-500.0,0.00024931,2]
[321915781,1712617865709,-804.61,0.00024931,2]
[321915782,1712617865719,-517.52,0.00024931,2]
[321915783,1712617865730,-1469.7,0.00024931,2]
[321915784,1712617865739,-537.2680173,0.00024931,2]
[321915785,1712617865748,-500.0,0.00024931,2]
[321915786,1712617865758,-500.0,0.00024931,2]
[321915787,1712617865767,-178.422801,0.00024931,7]
[321915788,1712617865777,-178.422801,0.00024931,7]
[321915789,1712617865787,-178.422801,0.00024931,7]
[321915790,1712617865796,-688.88,0.00024931,2]
[321915791,1712617865810,-2268.15,0.00024931,2]
[321915792,1712617865819,-500.88961867,0.00024931,2]
[321915793,1712617865829,-500.0,0.00024931,2]
[321915794,1712617865838,-500.0,0.00024931,2]
[321915795,1712617865849,-500.0,0.00024931,2]
[321915796,1712617865858,-178.422801,0.00024931,7]
[321915797,1712617865869,-178.422801,0.00024931,7]
[321915798,1712617865878,-178.422801,0.00024931,7]
[321915799,1712617865889,-500.0,0.00024931,2]
[321915800,1712617865899,-500.0,0.00024931,2]
[321915801,1712617865908,-500.0,0.00024931,2]
[321915802,1712617865918,-1685.82,0.00024931,2]
[321915803,1712617865927,-500.0,0.00024931,2]
[321915804,1712617865938,-500.0,0.00024931,2]
[321915805,1712617865948,-500.0,0.00024931,2]
[321915806,1712617865957,-500.0,0.00024931,2]
[321915807,1712617865967,-500.0,0.00024931,2]
[321915808,1712617865977,-1144.58,0.00024931,2]
[321915809,1712617865987,-500.0,0.00024931,2]
[321915810,1712617865996,-1120.7,0.00024931,2]
[321915811,1712617866006,-500.0,0.00024931,2]
[321915812,1712617866015,-787.42,0.00024931,2]
[321915813,1712617866025,-500.0,0.00024931,2]
[321915814,1712617866034,-1359.62,0.00024931,2]
[321915815,1712617866043,-500.0,0.00024931,2]
[321915816,1712617866053,-500.0,0.00024931,2]
[321915817,1712617866062,-748.15,0.00024931,2]
[321915818,1712617866072,-500.0,0.00024931,2]
[321915819,1712617866163,-500.0,0.00024931,2]
[321915820,1712617866173,-500.82185017,0.00024931,2]
[321915821,1712617866183,-500.0,0.00024931,2]
[321915822,1712617866192,-859.06,0.00024931,2]
[321915823,1712617866202,-693.18,0.00024931,2]
[321915824,1712617866211,-500.0,0.00024931,2]
[321915825,1712617866220,-572.1726328,0.00024931,2]
[321915826,1712617866230,-500.0,0.00024931,2]
[321915827,1712617866240,-500.0,0.00024931,2]
[321915828,1712617866249,-500.0,0.00024931,2]
[321915829,1712617866258,-562.91,0.00024931,2]
[321915830,1712617866268,-2351.95,0.00024931,2]
[321915831,1712617866278,-500.0,0.00024931,2]
[321915832,1712617866287,-863.58,0.00024931,2]
[321915833,1712617866297,-1470.75,0.00024931,2]
[321915834,1712617866306,-500.0,0.00024931,2]
[321915835,1712617866316,-301.79190538,0.00024931,2]
[321915836,1712617866326,-537.47596464,0.00024931,2]
[321915837,1712617866335,-500.0,0.00024931,2]
[321915838,1712617866345,-500.0,0.00024931,2]
[321915839,1712617866354,-500.0,0.00024931,2]
[321915840,1712617866364,-1131.42,0.00024931,2]
[321915841,1712617866374,-500.0,0.00024931,2]
[321915842,1712617866383,-500.0,0.00024931,2]
[321915843,1712617866392,-500.0,0.00024931,2]
[321915844,1712617866402,-500.0,0.00024931,2]
[321915845,1712617866411,-982.83,0.00024931,2]
[321915846,1712617866420,-500.0,0.00024931,2]
[321915847,1712617866430,-500.0,0.00024931,2]
[321915848,1712617866439,-500.0,0.00024931,2]
[321915849,1712617866449,-1535.24,0.00024931,2]
[321915850,1712617866459,-500.0,0.00024931,2]
[321915851,1712617866468,-500.0,0.00024931,2]
[321915852,1712617866479,-664.34,0.00024931,2]
[321915853,1712617866489,-500.0,0.00024931,2]
[321915854,1712617866498,-500.0,0.00024931,2]
[321915855,1712617866507,-500.0,0.00024931,2]
[321915856,1712617866517,-3167.29,0.00024931,2]
[321915857,1712617866526,-500.0,0.00024931,2]
[321915858,1712617866535,-251.363033,0.00024931,7]
[321915859,1712617866544,-576.32,0.00024931,2]
[321915860,1712617866554,-151.0,0.00024931,7]
[321915861,1712617866563,-151.0,0.00024931,7]
[321915862,1712617866572,-3376.06,0.00024931,2]
[321915863,1712617866582,-287.790304,0.00024931,7]
[321915864,1712617866591,-500.0,0.00024931,2]
[321915865,1712617866600,-1020.59,0.00024931,2]
[321915866,1712617866610,-567.33671693,0.00024931,2]
[321915867,1712617866620,-1287.05,0.00024931,2]
[321915868,1712617866631,-500.0,0.00024931,2]
[321915869,1712617866640,-1257.19,0.00024931,2]
[321915870,1712617866650,-547.25,0.00024931,2]
[321915871,1712617866659,-1797.46,0.00024931,2]
[321915872,1712617866668,-500.0,0.00024931,2]
[321915873,1712617866678,-500.0,0.00024931,2]
[321915874,1712617866688,-1912.09,0.00024931,2]
[321915875,1712617866699,-500.0,0.00024931,2]
[321915876,1712617866710,-516.99291436,0.00024931,2]
[321915877,1712617866720,-516.06,0.00024931,2]
[321915878,1712617866730,-500.0,0.00024931,2]
[321915879,1712617866740,-500.0,0.00024931,2]
[321915880,1712617866750,-500.0,0.00024931,2]
[321915881,1712617866760,-947.21,0.00024931,2]
[321915882,1712617866769,-436.0114582,0.00024931,2]
[321915883,1712617866780,-500.0,0.00024931,2]
[321915884,1712617866790,-500.0,0.00024931,2]
[321915885,1712617866800,-500.0,0.00024931,2]
[321915886,1712617866811,-500.0,0.00024931,2]
[321915887,1712617866822,-2653.51,0.00024931,2]
[321915888,1712617866831,-500.0,0.00024931,2]
[321915889,1712617866841,-526.41061016,0.00024931,2]
[321915890,1712617866851,-500.0,0.00024931,2]
[321915891,1712617866861,-500.0,0.00024931,2]
[321915892,1712617866870,-559.94,0.00024931,2]
[321915893,1712617866880,-1157.65,0.00024931,2]
[321915894,1712617866891,-546.7,0.00024931,2]
[321915895,1712617866900,-734.84,0.00024931,2]
[321915896,1712617866909,-500.0,0.00024931,2]
[321915897,1712617866919,-543.31525059,0.00024931,2]
[321915898,1712617866928,-500.0,0.00024931,2]
[321915899,1712617866938,-899.34,0.00024931,2]
[321915900,1712617866948,-500.0,0.00024931,2]
[321915901,1712617866957,-1958.39,0.00024931,2]
[321915902,1712617866966,-500.0,0.00024931,2]
[321915903,1712617866978,-500.0,0.00024931,2]
[321915904,1712617866987,-500.0,0.00024931,2]
[321915905,1712617866996,-500.0,0.00024931,2]
[321915906,1712617867005,-509.15,0.00024931,2]
[321915907,1712617867015,-500.0,0.00024931,2]
[321915908,1712617867024,-500.0,0.00024931,2]
[321915909,1712617867033,-500.0,0.00024931,2]
[321915910,1712617867042,-555.32,0.00024931,2]
[321915911,1712617867052,-500.0,0.00024931,2]
[321915912,1712617867061,-500.0,0.00024931,2]
[321915913,1712617867070,-500.0,0.00024931,2]
[321915914,1712617867081,-500.0,0.00024931,2]
[321915915,1712617867090,-500.0,0.00024931,2]
[321915916,1712617867099,-500.0,0.00024931,2]
[321915917,1712617867109,-500.0,0.00024931,2]
[321915918,1712617867118,-535.43986374,0.00024931,2]
[321915919,1712617867129,-500.0,0.00024931,2]
[321915920,1712617867138,-500.0,0.00024931,2]
[321915921,1712617867149,-500.0,0.00024931,2]
[321915922,1712617867158,-642.17,0.00024931,2]
[321915923,1712617867168,-596.33416494,0.00024931,2]
[321915924,1712617867177,-866.36,0.00024931,2]
[321915925,1712617867187,-500.0,0.00024931,2]
[321915926,1712617867196,-595.54,0.00024931,2]
[321915927,1712617867206,-500.0,0.00024931,2]
[321915928,1712617867215,-601.70446598,0.00024931,2]
[321915929,1712617867226,-1818.46,0.00024931,2]
[321915930,1712617867235,-500.0,0.00024931,2]
[321915931,1712617867244,-1062.27,0.00024931,2]
[321915932,1712617867254,-1904.99,0.00024931,2]
[321915933,1712617867263,-530.93931509,0.00024931,2]
[321915934,1712617867273,-500.0,0.00024931,2]
[321915935,1712617867283,-500.0,0.00024931,2]
[321915936,1712617867292,-500.0,0.00024931,2]
[321915937,1712617867302,-152.92027952,0.00024931,2]
[321915938,1712617867311,-500.0,0.00024931,2]
[321915939,1712617867320,-1557.25,0.00024931,2]
[321915940,1712617867330,-1472.7,0.00024931,2]
[321915941,1712617867340,-500.0,0.00024931,2]
[321915942,1712617867350,-500.0,0.00024931,2]
[321915943,1712617867361,-638.49,0.00024931,2]
[321915944,1712617867371,-1395.03,0.00024931,2]
[321915945,1712617867383,-1641.63,0.00024931,2]
[321915946,1712617867393,-500.0,0.00024931,2]
[321915947,1712617867403,-500.0,0.00024931,2]
[321915948,1712617867412,-500.0,0.00024931,2]
[321915949,1712617867421,-2444.8,0.00024931,2]
[321915950,1712617867430,-500.0,0.00024931,2]
[321915951,1712617867439,-869.16,0.00024931,2]
[321915952,1712617867448,-500.0,0.00024931,2]
[321915953,1712617867457,-943.43,0.00024931,2]
[321915954,1712617867466,-2389.3,0.00024931,2]
[321915955,1712617867475,-957.23,0.00024931,2]
[321915956,1712617867484,-510.11,0.00024931,2]
[321915957,1712617867493,-500.0,0.00024931,2]
[321915958,1712617867502,-500.0,0.00024931,2]
[321915959,1712617867511,-3416.91,0.00024931,2]
[321915960,1712617867521,-1025.1,0.00024931,2]
[321915961,1712617867530,-1256.18,0.00024931,2]
[321915962,1712617867540,-512.49940998,0.00024931,2]
[321915963,1712617867550,-500.0,0.00024931,2]
[321915964,1712617867559,-1945.03,0.00024931,2]
[321915965,1712617867569,-623.44,0.00024931,2]
[321915966,1712617867578,-1865.03,0.00024931,2]
[321915967,1712617867587,-500.0,0.00024931,2]
[321915968,1712617867596,-500.0,0.00024931,2]
[321915969,1712617867606,-500.0,0.00024931,2]
[321915970,1712617867615,-500.0,0.00024931,2]
[321915971,1712617867625,-500.0,0.00024931,2]
[321915972,1712617867634,-872.2,0.00024931,2]
[321915973,1712617867643,-500.0,0.00024931,2]
[321915974,1712617867652,-1835.17,0.00024931,2]
[321915975,1712617867661,-500.0,0.00024931,2]
[321915976,1712617867671,-500.0,0.00024931,2]
[321915977,1712617867685,-500.0,0.00024931,2]
[321915978,1712617867694,-500.0,0.00024931,2]
[321915979,1712617867703,-500.0,0.00024931,2]
[321915980,1712617867712,-151.0,0.00024931,2]
[321915981,1712617867722,-151.0,0.00024931,2]
[321915982,1712617867732,-151.0,0.00024931,2]
[321915983,1712617867741,-773.26,0.00024931,2]
[321915984,1712617867750,-500.0,0.00024931,2]
[321915985,1712617867760,-500.0,0.00024931,2]
[321915986,1712617867769,-3646.58,0.00024931,2]
[321915987,1712617867779,-500.0,0.00024931,2]
[321915988,1712617867788,-500.0,0.00024931,2]
[321915989,1712617867798,-500.0,0.00024931,2]
[321915990,1712617867809,-500.0,0.00024931,2]
[321915991,1712617867821,-2004.51,0.00024931,2]
[321915992,1712617867830,-500.0,0.00024931,2]
[321915993,1712617867840,-500.0,0.00024931,2]
[321915994,1712617867850,-500.0,0.00024931,2]
[321915995,1712617867859,-500.0,0.00024931,2]
[321915996,1712617867868,-500.0,0.00024931,2]
[321915997,1712617867878,-500.0,0.00024931,2]
[321915998,1712617867887,-500.0,0.00024931,2]
[321915999,1712617867898,-623.1,0.00024931,2]
[321916000,1712617867907,-500.0,0.00024931,2]
[321916001,1712617867916,-500.0,0.00024931,2]
[321916002,1712617867926,-500.0,0.00024931,2]
[321916003,1712617867935,-500.0,0.00024931,2]
[321916004,1712617867945,-1607.05,0.00024931,2]
[321916005,1712617867954,-500.0,0.00024931,2]
[321916006,1712617867963,-1539.15,0.00024931,2]
[321916007,1712617867973,-542.91,0.00024931,2]
[321916008,1712617867982,-1767.31,0.00024931,2]
[321916009,1712617867991,-500.0,0.00024931,2]
[321916010,1712617868000,-500.0,0.00024931,2]
[321916011,1712617868010,-500.0,0.00024931,2]
[321916012,1712617868020,-537.03,0.00024931,2]
[321916013,1712617868031,-500.0,0.00024931,2]
[321916014,1712617868040,-500.0,0.00024931,2]
[321916015,1712617868049,-684.03,0.00024931,2]
[321916016,1712617868058,-1947.86,0.00024931,2]
[321916017,1712617868067,-500.0,0.00024931,2]
[321916018,1712617868077,-1757.77,0.00024931,2]
[321916019,1712617868086,-620.65,0.00024931,2]
[321916020,1712617868097,-500.0,0.00024931,2]
[321916021,1712617868106,-500.0,0.00024931,2]
[321916022,1712617868116,-185.61438638,0.00024931,2]
[321916023,1712617868127,-500.0,0.00024931,2]
[321916024,1712617868137,-500.0,0.00024931,2]
[321916025,1712617868146,-500.0,0.00024931,2]
[321916026,1712617868157,-500.0,0.00024931,2]
[321916027,1712617868168,-500.0,0.00024931,2]
[321916028,1712617868178,-300.0,0.00024931,2]
[321916029,1712617868188,-5914.1,0.00024931,2]
[321916030,1712617868198,-500.0,0.00024931,2]
[321916031,1712617868208,-1381.48,0.00024931,2]
[321916032,1712617868217,-223.83,0.00024931,2]
[321916033,1712617868228,-837.4,0.00024931,2]
[321916034,1712617868237,-1465.74,0.00024931,2]
[321916035,1712617868246,-215.02,0.00024931,2]
[321916036,1712617868256,-1426.12,0.00024931,2]
[321916037,1712617868265,-503.53,0.00024931,2]
[321916038,1712617868274,-151.0,0.00024931,7]
[321916039,1712617868285,-1733.31,0.00024931,2]
[321916040,1712617868294,-2511.15,0.00024931,2]
[321916041,1712617868304,-500.0,0.00024931,2]
[321916042,1712617868315,-500.0,0.00024931,2]
[321916043,1712617868326,-1074.23,0.00024931,2]
[321916044,1712617868335,-500.0,0.00024931,2]
[321916045,1712617868345,-500.0,0.00024931,2]
[321916046,1712617868354,-500.0,0.00024931,2]
[321916047,1712617868364,-500.0,0.00024931,2]
[321916048,1712617868373,-1559.32,0.00024931,2]
[321916049,1712617868383,-500.0,0.00024931,2]
[321916050,1712617868392,-659.7,0.00024931,2]
[321916051,1712617868401,-854.64,0.00024931,2]
[321916052,1712617868410,-500.0,0.00024931,2]
[321916053,1712617868419,-2109.64,0.00024931,2]
[321916054,1712617868428,-500.0,0.00024931,2]
[321916055,1712617868437,-1740.08,0.00024931,2]
[321916056,1712617868446,-571.74,0.00024931,2]
[321916057,1712617868456,-500.0,0.00024931,2]
[321916058,1712617868465,-1461.68,0.00024931,2]
[321916059,1712617868475,-573.14,0.00024931,2]
[321916060,1712617868484,-500.0,0.00024931,2]
[321916061,1712617868493,-516.95694558,0.00024931,2]
[321916062,1712617868502,-500.0,0.00024931,2]
[321916063,1712617868512,-500.0,0.00024931,2]
[321916064,1712617868521,-500.0,0.00024931,2]
[321916065,1712617868531,-500.0,0.00024931,2]
[321916066,1712617868540,-500.0,0.00024931,2]
[321916067,1712617868552,-500.0,0.00024931,2]
[321916068,1712617868563,-849.63,0.00024931,2]
[321916069,1712617868572,-514.65,0.00024931,2]
[321916070,1712617868582,-1538.83,0.00024931,2]
[321916071,1712617868591,-500.0,0.00024931,2]
[321916072,1712617868600,-500.0,0.00024931,2]
[321916073,1712617868609,-500.0,0.00024931,2]
[321916074,1712617868618,-500.0,0.00024931,2]
[321916075,1712617868629,-500.0,0.00024931,2]
[321916076,1712617868638,-151.0,0.00024931,7]
[321916077,1712617868647,-500.0,0.00024931,2]
[321916078,1712617868656,-151.0,0.00024931,7]
[321916079,1712617868665,-500.0,0.00024931,2]
[321916080,1712617868674,-151.0,0.00024931,7]
[321916081,1712617868683,-500.0,0.00024931,2]
[321916082,1712617868692,-500.0,0.00024931,2]
[321916083,1712617868702,-500.0,0.00024931,2]
[321916084,1712617868711,-1146.69,0.00024931,2]
[321916085,1712617868720,-500.0,0.00024931,2]
[321916086,1712617868730,-500.0,0.00024931,2]
[321916087,1712617868739,-648.61,0.00024931,2]
[321916088,1712617868748,-649.17,0.00024931,2]
[321916089,1712617868757,-928.33,0.00024931,2]
[321916090,1712617868766,-1848.39,0.00024931,2]
[321916091,1712617868775,-1184.07,0.00024931,2]
[321916092,1712617868784,-500.0,0.00024931,2]
[321916093,1712617868794,-1698.37,0.00024931,2]
[321916094,1712617868805,-3043.69,0.00024931,2]
[321916095,1712617868820,-500.0,0.00024931,2]
[321916096,1712617868829,-3318.95,0.00024931,2]
[321916097,1712617868838,-500.0,0.00024931,2]
[321916098,1712617868848,-595.34,0.00024931,2]
[321916099,1712617868857,-153.07213,0.00024931,7]
[321916100,1712617868866,-1173.11,0.00024931,2]
[321916101,1712617868875,-153.07213,0.00024931,7]
[321916102,1712617868885,-153.07213,0.00024931,7]
[321916103,1712617868894,-965.28,0.00024931,2]
[321916104,1712617868904,-681.09,0.00024931,2]
[321916105,1712617868913,-726.19,0.00024931,2]
[321916106,1712617868923,-1527.57,0.00024931,2]
[321916107,1712617868932,-153.07213,0.00024931,7]
[321916108,1712617868941,-153.07213,0.00024931,7]
[321916109,1712617868950,-153.07213,0.00024931,7]
[321916110,1712617868960,-1236.08,0.00024931,2]
[321916111,1712617868969,-500.0,0.00024931,2]
[321916112,1712617868979,-506.49,0.00024931,2]
[321916113,1712617868988,-2173.18,0.00024931,2]
[321916114,1712617868996,-1361.08,0.00024931,2]
[321916115,1712617869005,-500.0,0.00024931,2]
[321916116,1712617869015,-500.0,0.00024931,2]
[321916117,1712617869024,-500.0,0.00024931,2]
[321916118,1712617869034,-2970.33,0.00024931,2]
[321916119,1712617869043,-1063.47,0.00024931,2]
[321916120,1712617869052,-734.04,0.00024931,2]
[321916121,1712617869061,-500.0,0.00024931,2]
[321916122,1712617869070,-500.0,0.00024931,2]
[321916123,1712617869079,-500.0,0.00024931,2]
[321916124,1712617869088,-500.0,0.00024931,2]
[321916125,1712617869099,-917.78,0.00024931,2]
[321916126,1712617869108,-1340.59,0.00024931,2]
[321916127,1712617869119,-500.0,0.00024931,2]
[321916128,1712617869128,-500.0,0.00024931,2]
[321916129,1712617869138,-3033.91,0.00024931,2]
[321916130,1712617869147,-1676.3,0.00024931,2]
[321916131,1712617869157,-500.0,0.00024931,2]
[321916132,1712617869166,-500.0,0.00024931,2]
[321916133,1712617869175,-1470.64,0.00024931,2]
[321916134,1712617869184,-1957.44,0.00024931,2]
[321916135,1712617869193,-1613.73,0.00024931,2]
[321916136,1712617869203,-468.16360629,0.00024931,2]
[321916137,1712617869212,-1108.29,0.00024931,2]
[321916138,1712617869220,-500.0,0.00024931,2]
[321916139,1712617869230,-500.0,0.00024931,2]
[321916140,1712617869239,-500.0,0.00024931,2]
[321916141,1712617869248,-1159.1,0.00024931,2]
[321916142,1712617869257,-500.0,0.00024931,2]
[321916143,1712617869266,-500.0,0.00024931,2]
[321916144,1712617869275,-500.0,0.00024931,2]
[321916145,1712617869283,-500.0,0.00024931,2]
[321916146,1712617869293,-1984.23,0.00024931,2]
[321916147,1712617869302,-970.81,0.00024931,2]
[321916148,1712617869311,-533.73,0.00024931,2]
[321916149,1712617869319,-3807.07,0.00024931,2]
[321916150,1712617869329,-1255.34,0.00024931,2]
[321916151,1712617869338,-151.0,0.00024931,7]
[321916152,1712617869347,-151.0,0.00024931,7]
[321916153,1712617869356,-151.0,0.00024931,7]
[321916154,1712617869365,-991.91,0.00024931,2]
[321916155,1712617869373,-500.0,0.00024931,2]
[321916156,1712617869382,-500.0,0.00024931,2]
[321916157,1712617869391,-249.807625,0.00024931,7]
[321916158,1712617869400,-249.807625,0.00024931,7]
[321916159,1712617869409,-249.807625,0.00024931,7]
[321916160,1712617869418,-526.03478371,0.00024931,2]
[321916161,1712617869427,-249.807625,0.00024931,7]
[321916162,1712617869436,-500.0,0.00024931,2]
[321916163,1712617869445,-249.807625,0.00024931,7]
[321916164,1712617869454,-249.807625,0.00024931,7]
[321916165,1712617869463,-2496.48,0.00024931,2]
[321916166,1712617869472,-507.0624008,0.00024931,2]
[321916167,1712617869482,-611.14,0.00024931,2]
[321916168,1712617869491,-4763.33,0.00024931,2]
[321916169,1712617869499,-2332.44,0.00024931,2]
[321916170,1712617869509,-500.0,0.00024931,2]
[321916171,1712617869518,-2945.01,0.00024931,2]
[321916172,1712617869527,-500.0,0.00024931,2]
[321916173,1712617869535,-260.174226,0.00024931,7]
[321916174,1712617869544,-500.0,0.00024931,2]
[321916175,1712617869554,-260.174226,0.00024931,7]
[321916176,1712617869563,-500.0,0.00024931,2]
[321916177,1712617869572,-260.174226,0.00024931,7]
[321916178,1712617869581,-151.0,0.00024931,7]
[321916179,1712617869590,-151.0,0.00024931,7]
[321916180,1712617869599,-2860.76,0.00024931,2]
[321916181,1712617869608,-151.0,0.00024931,7]
[321916182,1712617869618,-198.76985123,0.00024931,2]
[321916183,1712617869628,-500.0,0.00024931,2]
[321916184,1712617869637,-500.0,0.00024931,2]
[321916185,1712617869646,-15063.16,0.00024931,2]
[321916186,1712617869654,-1566.03,0.00024931,2]
[321916187,1712617869664,-500.0,0.00024931,2]
[321916188,1712617869673,-260.174226,0.00024931,7]
[321916189,1712617869681,-500.0,0.00024931,2]
[321916190,1712617869691,-260.174226,0.00024931,7]
[321916191,1712617869700,-544.71,0.00024931,2]
[321916192,1712617869709,-500.0,0.00024931,2]
[321916193,1712617869718,-336.70709455,0.00024931,2]
[321916194,1712617869728,-500.0,0.00024931,2]
[321916195,1712617869737,-260.174226,0.00024931,7]
[321916196,1712617869746,-500.0,0.00024931,2]
[321916197,1712617869756,-2751.22,0.00024931,2]
[321916198,1712617869767,-969.74,0.00024931,2]
[321916199,1712617869776,-500.0,0.00024931,2]
[321916200,1712617869786,-2729.37,0.00024931,2]
[321916201,1712617869795,-500.0,0.00024931,2]
[321916202,1712617869804,-1630.96,0.00024931,2]
[321916203,1712617869815,-1305.65,0.00024931,2]
[321916204,1712617869825,-500.0,0.00024931,2]
[321916205,1712617869834,-9177.67,0.00024931,2]
[321916206,1712617869843,-909.91,0.00024931,2]
[321916207,1712617869853,-4787.77,0.00024931,2]
[321916208,1712617869862,-500.0,0.00024931,2]
[321916209,1712617869871,-500.0,0.00024931,2]
[321916210,1712617869880,-500.0,0.00024931,2]
[321916211,1712617869889,-500.0,0.00024931,2]
[321916212,1712617869899,-1814.57,0.00024931,2]
[321916213,1712617869908,-500.0,0.00024931,2]
[321916214,1712617869917,-1680.5,0.00024931,2]
[321916215,1712617869926,-1280.78,0.00024931,2]
[321916216,1712617869936,-1175.07,0.00024931,2]
[321916217,1712617869944,-311.625093,0.00024931,2]
[321916218,1712617869954,-500.0,0.00024931,2]
[321916219,1712617869962,-500.0,0.00024931,2]
[321916220,1712617869972,-2085.18,0.00024931,2]
[321916221,1712617869982,-500.0,0.00024931,2]
[321916222,1712617869991,-500.0,0.00024931,2]
[321916223,1712617870019,-6827.97,0.00024931,2]
[321916224,1712617870028,-500.0,0.00024931,2]
[321916225,1712617870038,-20230.6,0.00024931,2]
[321916226,1712617870047,-500.0,0.00024931,2]
[321916227,1712617870056,-500.0,0.00024931,2]
[321916228,1712617870066,-1772.49,0.00024931,2]
[321916229,1712617870075,-500.0,0.00024931,2]
[321916230,1712617870085,-1896.03,0.00024931,2]
[321916231,1712617870094,-117086.5,0.00024931,2]